Cogmind - Beta 15 @@@ ROGUE MODE // 2025.08.24 @ 09:16:46 Player: shapeshifter Result: Destroyed by G-50 Soldier with Heavy Laser Performance ------------- Evolutions (4) 2000 Regions Visited (8) 1600 Robots Destroyed (65) 325 Value Destroyed (2082) 2082 Prototype IDs (25) 500 Alien Tech Used (0) 0 Bonus (437) 437 TOTAL SCORE: 6944 Bonus ------- High Alert Combat Kills 72 Follower Combat Kills 165 Entered Garrisons 200 Cogmind --------- Core Integrity 0/850 Matter 149/300 Energy 98/100 System Corruption 0% Temperature Cool (27) Movement Core (50) Location -6/Garrison Parts ------- > --- POWER (2) -------- (None) > --- PROPULSION (4) --- (None) > --- UTILITY (6) ------ Improved Signal Interpreter > --- WEAPON (3) ------- (None) > --- INVENTORY (5) ---- Coolant Injector High-capacity Storage Unit Experimental Sensor Array Relay Coupler [Grunt] (27) Rocket Array Peak State ------------ > --- POWER ------------ Ion Engine Light Nuclear Core > --- PROPULSION ------- Light Treads Light Treads Light Treads Light Treads > --- UTILITY ---------- Coolant Injector High-capacity Storage Unit Large Battery Improved Signal Interpreter Powered Armor Trap Reconfigurator > --- WEAPON ----------- Arc Projector Gatling Laser Rocket Array > --- INVENTORY -------- Light Nuclear Core Light Nuclear Core Fission Core Coolant Injector Coolant Injector Large Matter Pod Experimental Sensor Array Improved Signal Interpreter Hardened Medium Armor Plating Hardened Medium Armor Plating Hardened Medium Armor Plating Hardlight Generator Relay Coupler [NC] Relay Coupler [Grunt] Particle Gun Improved EM Pulse Cannon Rocket Array Rocket Array Rocket Array Heavy Mace [Rating: 50] Favorites ----------- Power Ion Engine Engine Ion Engine Power Core Light Nuclear Core Propulsion Light Treads Treads Light Treads Wheel Wheel Utility High-capacity Storage Unit Device Coolant Injector Storage High-capacity Storage Unit Processor Improved Signal Interpreter Hackware Hacking Suite Protection Hardened Medium Armor Plating Weapon Light Assault Rifle Energy Gun Arc Projector Energy Cannon Beam Cannon Ballistic Gun Light Assault Rifle Launcher Rocket Array Impact Weapon Heavy Mace Build | -11 -10 -10 -10 -9 -8 -7 -6 -6 ------- Run | Yrd Mat Min Exi Min Mat Fac Fac Gar Slots Evolved 8 | . . . . . 4 2 2 . Power 1 | . . . . . . . 1 . Propulsion 2 | . . . . . 1 1 . . Utility 4 | . . . . . 2 1 1 . Weapon 1 | . . . . . 1 . . . Parts Attached 58 | 7 . 6 . . 18 11 2 14 Power 6 | 1 . 1 . . . . 1 3 Engine 2 | 1 . 1 . . . . . . Core 4 | . . . . . . . 1 3 Reactor . | . . . . . . . . . Propulsion 13 | 2 . 3 . . 5 1 . 2 Treads 7 | 2 . . . . 2 1 . 2 Leg . | . . . . . . . . . Wheel 6 | . . 3 . . 3 . . . Hover . | . . . . . . . . . Flight . | . . . . . . . . . Utility 22 | 2 . 1 . . 7 4 1 7 Device 9 | 1 . . . . 3 2 . 3 Storage 4 | 1 . 1 . . . . . 2 Processor 2 | . . . . . 1 1 . . Hackware 1 | . . . . . . 1 . . Protection 6 | . . . . . 3 . 1 2 Artifact . | . . . . . . . . . Weapon 17 | 2 . 1 . . 6 6 . 2 Energy Gun 6 | . . . . . 3 3 . . Energy Cannon 3 | . . 1 . . 1 1 . . Ballistic Gun 4 | 2 . . . . 2 . . . Ballistic Cannon . | . . . . . . . . . Launcher 3 | . . . . . . 1 . 2 Special Weapon . | . . . . . . . . . Impact Weapon 1 | . . . . . . 1 . . Slashing Weapon . | . . . . . . . . . Piercing Weapon . | . . . . . . . . . Special Melee Weapon . | . . . . . . . . . Unidentified Prototypes 2 | . . . . . . 2 . . Corrupted Parts 1 | . . . . . . 1 . . System Corruption 2 | . . . . . . 2 . . Parts Lost 34 | . . 2 . . 6 1 . 25 Power 5 | . . . . . . . . 5 Propulsion 9 | . . . . . 3 1 . 5 Utility 9 | . . 1 . . 1 . . 7 Weapon 11 | . . 1 . . 2 . . 8 Highest Loss Streak 14 | . . 1 . . 3 1 . 14 To Critical Strikes . | . . . . . . . . . Average Backups 12 | 4 7 8 6 12 18 19 18 13 Power 1 | . 1 1 . . 1 1 . 1 Propulsion . | 1 2 2 2 2 . . . . Utility 6 | . 1 2 2 5 12 13 12 8 Weapon 3 | 1 2 2 2 4 5 5 6 2 Tool/Special . | . . . . . . . . . Unused Backups 21 | . . . . . 6 5 . 10 Power . | . . . . . . . . . Propulsion 1 | . . . . . 1 . . . Utility 13 | . . . . . 4 1 . 8 Weapon 7 | . . . . . 1 4 . 2 Tool/Special . | . . . . . . . . . Average Slot Usage (%) 81 | . 100 95 85 85 92 93 91 59 Engine 8 | . 14 14 14 14 9 7 6 1 Core 1 | . . . . . . . 5 3 Treads 8 | . 28 21 . . 3 11 13 6 Wheel 11 | . . 6 28 28 20 12 6 . Device 10 | . 14 10 . . 12 14 13 13 Storage 10 | . 14 14 14 14 9 7 6 8 Processor 3 | . . . . . 6 6 6 6 Protection 2 | . . . . . 3 6 5 4 Energy Gun 4 | . . . . . 4 15 13 5 Energy Cannon 5 | . . 2 14 14 13 3 . . Ballistic Gun 9 | . 28 25 14 14 8 1 . . Launcher 1 | . . . . . . . . 4 Impact Weapon 1 | . . . . . . 1 6 3 Peak Build Rating 50 | 7 8 8 8 11 30 42 49 50 Average Rating 22 | 5 7 7 7 9 24 39 48 35 On Entrance 17 | . 7 8 6 8 11 29 42 49 Naked Turns . | . . . . . . . . . Heaviest Build 81 | 14 14 49 49 49 72 71 73 81 Greatest Support 80 | 40 40 40 20 20 30 20 10 80 Greatest Overweight (x) 19 | . . 2 2 2 5 6 7 19 Average Overweight (x) 2 | . . . 2 2 1 3 7 4 Largest Inventory Capacity 20 | 8 8 20 20 20 20 20 20 20 Average Capacity 16 | 7 8 10 20 20 20 20 20 17 Most Carried 20 | 7 8 9 9 18 20 20 20 20 Average Carried 12 | 4 7 7 7 12 18 19 18 13 Final Capacity 20 | 8 8 20 20 20 20 20 20 5 Final Carried 20 | 5 8 5 9 18 20 20 19 5 Class Distribution -------------------- 67% | Mutant 9% | Scavenger-Tank 8% | Skirmisher 5% | Scavenger-Mutant 4% | Scavenger-Skirmisher 3% | Gunner Dominant Class ---------------- Mutant | -10/Materials Mutant | -10/Mines Mutant | -10/Exiles Mutant | -9/Mines Skirmisher | -8/Materials Scavenger-Skirmisher | -7/Factory Scavenger-Mutant | -6/Factory Mutant | -6/Garrison Resources | -11 -10 -10 -10 -9 -8 -7 -6 -6 ----------- Run | Yrd Mat Min Exi Min Mat Fac Fac Gar Matter Collected 1150 | 320 58 162 24 . 272 85 . 229 Remotely . | . . . . . . . . . Salvage Created 1829 | 149 102 230 43 . 517 131 . 657 Parts 117 | 13 12 26 3 . 29 6 . 28 Haulers Intercepted 1 | . . . . . . 1 . . Recyclers Shooed . | . . . . . . . . . Parts Field Recycled . | . . . . . . . . . Retrieved Matter . | . . . . . . . . . Parts Self-Destructed . | . . . . . . . . . Prevented . | . . . . . . . . . Kills | -11 -10 -10 -10 -9 -8 -7 -6 -6 ------- Run | Yrd Mat Min Exi Min Mat Fac Fac Gar Combat Hostiles Destroyed 54 | . 4 9 . . 14 1 . 26 Guns 25 | . 4 8 . . 6 . . 7 Cannons 9 | . . 1 . . 8 . . . AOE 16 | . . . . . . . . 16 Classes Destroyed 10 | 1 3 1 . . 3 1 . 1 Builder 1 | . . 1 . . . . . . Tunneler 7 | 6 . 1 . . . . . . Hauler 1 | . . . . . . 1 . . Mechanic 1 | . . . . . 1 . . . Watcher 1 | . 1 . . . . . . . Swarmer 29 | . 3 7 . . 6 . . 13 Grunt 16 | . 1 2 . . 5 . . 8 Brawler 1 | . . . . . 1 . . . Sentry 7 | . . . . . 2 1 . 4 Hunter 1 | . . . . . . . . 1 Best Kill Streak 8 | 1 3 7 . . 4 1 . 8 Combat Bots Only 8 | . 3 5 . . 4 1 . 8 Max Kills in Single Turn 5 | 1 1 1 . . 2 1 . 5 Gunslinging 1 | . . . . . . . . 1 Exploded 5 | . . . . . . . . 5 Melee . | . . . . . . . . . Uniques/NPCs Destroyed . | . . . . . . . . . Combat | -11 -10 -10 -10 -9 -8 -7 -6 -6 -------- Run | Yrd Mat Min Exi Min Mat Fac Fac Gar Hostile Shots Fired 709 | . 8 88 . . 75 48 . 490 Missed 244 | . 1 26 . . 26 24 . 167 Hits 465 | . 7 62 . . 49 24 . 323 Melee 1 | . . . . . 1 . . . Projectile 464 | . 7 62 . . 48 24 . 323 Critical Strikes 6 | . . 2 . . 1 . . 3 Damage Taken 5368 | . 61 571 . . 789 149 . 3798 Core 1041 | . 8 103 . . 73 6 . 851 Absorbed by Shields 364 | . . . . . . . . 364 Core Remaining (%) 85 | 100 . . . 55 86 99 . . Volleys Fired 138 | 22 8 33 4 . 28 6 4 33 Largest 3 | 2 2 2 2 . 3 3 2 3 Hottest 200 | 40 40 80 80 . 170 199 135 200 Shots Fired 291 | 44 16 64 8 . 83 12 8 56 Gun 214 | 44 16 62 4 . 32 8 8 40 Cannon 64 | . . 2 4 . 51 4 . 3 Launcher 13 | . . . . . . . . 13 Special . | . . . . . . . . . Kinetic 150 | 44 16 62 4 . 24 . . . Thermal 92 | . . 2 4 . 55 3 4 24 Explosive 13 | . . . . . . . . 13 Electromagnetic 36 | . . . . . 4 9 4 19 Robot Hit Streak 12 | 7 6 5 2 . 9 7 3 12 Robot Miss Streak 8 | 2 1 8 1 . 5 1 5 5 Penetration Max 1 | . . . . . 1 . . . Secondary Targets 4 | . . 3 . . . . . 1 Max Gunslinging Chain 1 | . . 1 . . . . . 1 Shots Hit Robots 169 | 24 10 31 5 . 41 9 5 44 Core Hits 155 | 9 8 15 1 . 23 5 1 93 Critical Kills . | . . . . . . . . . Critical Parts Destroyed 2 | . . . . . . . . 2 Critical Strikes 4 | . . . . . . . . 4 Burn 1 | . . . . . . . . 1 Corrupt 1 | . . . . . . . . 1 Smash 2 | . . . . . . . . 2 Melee Attacks 19 | . . . . . . 7 1 11 Impact 19 | . . . . . . 7 1 11 Slashing . | . . . . . . . . . Piercing . | . . . . . . . . . Sneak Attacks . | . . . . . . . . . Combat Hostiles . | . . . . . . . . . Follow-up Attacks . | . . . . . . . . . Damage Inflicted 4873 | 255 104 357 83 . 863 213 89 2909 Guns 1598 | 255 104 339 19 . 321 64 89 407 Cannons 767 | . . 18 64 . 491 104 . 90 Explosions 2317 | . . . . . 51 45 . 2221 Melee 187 | . . . . . . . . 187 Ramming 4 | . . . . . . . . 4 Kinetic 949 | 255 104 339 19 . 232 . . . Thermal 1138 | . . 18 64 . 579 77 76 324 Explosive 2221 | . . . . . . . . 2221 Electromagnetic 374 | . . . . . 52 136 13 173 Impact 187 | . . . . . . . . 187 Slashing . | . . . . . . . . . Piercing . | . . . . . . . . . Highest Corruption 5 | . . . . . 5 2 . . Average Corruption 4 | . . . . . 5 2 . . Corruption Purged . | . . . . . . . . . Corruption Blocked . | . . . . . . . . . Effects 6 | . . . . . 6 . . . Message Errors 2 | . . . . . 2 . . . Matter Fused 3 | . . . . . 3 . . . Energy Discharges 1 | . . . . . 1 . . . Overload Shots . | . . . . . . . . . Overflow Damage 129 | . . . 5 . 12 . . 112 Projectiles 5 | . . . 5 . . . . . Explosions 57 | . . . . . 12 . . 45 Melee 67 | . . . . . . . . 67 Knockbacks . | . . . . . . . . . Impact . | . . . . . . . . . Kinetic . | . . . . . . . . . Secondary . | . . . . . . . . . Self-Inflicted Damage 715 | . . . . . 28 . . 687 Shots 29 | . . . . . 1 . . 28 Rammed 1 | . . . . . . . . 1 Targets Rammed 1 | . . . . . . . . 1 Kicked . | . . . . . . . . . Crushed . | . . . . . . . . . Highest Temperature 199 | . . 78 100 . 199 153 150 198 Average Temperature 90 | . . 23 53 . 106 69 55 99 Received Heat Transfer 969 | . . 120 . . 270 18 . 561 Siege Activations . | . . . . . . . . . Martial Activations . | . . . . . . . . . Shielding Activations . | . . . . . . . . . Robots Disrupted . | . . . . . . . . . Combat Hostiles . | . . . . . . . . . Robots Corrupted 4 | . . . . . . 1 . 3 Combat Hostiles 4 | . . . . . . 1 . 3 Parts Fried 3 | . . . . . . 1 . 2 Impact Corruptions 3 | . . . . . . . . 3 Robots Melted . | . . . . . . . . . Combat Hostiles . | . . . . . . . . . Parts Melted 7 | . . . . . 3 . . 4 Heat Transferred 2435 | . . 37 111 . 1197 107 175 808 Parts Sabotaged . | . . . . . . . . . Parts Stolen . | . . . . . . . . . Parts Stripped . | . . . . . . . . . Power Chain Reactions 2 | . . . . . 1 1 . . Alert | -11 -10 -10 -10 -9 -8 -7 -6 -6 ------- Run | Yrd Mat Min Exi Min Mat Fac Fac Gar Maximum Alert Level 2 | . . . . . 1 . . 2 Low Security (%) 72 | 100 100 100 . 100 82 100 100 20 Level 1 11 | . . . . . 17 . . 28 Level 2 16 | . . . . . . . . 51 Level 3 . | . . . . . . . . . Level 4 . | . . . . . . . . . Level 5 . | . . . . . . . . . High Security . | . . . . . . . . . Max Security . | . . . . . . . . . Peak Influence 657 | 5 60 171 . 50 231 90 1 657 Initial 90 | . . 15 . . . 90 . . Average 153 | . 10 58 . 5 145 27 . 381 Influence Increases 1945 | 30 107 265 5 60 551 72 1 854 Destroy 0b10 Robot/C 1180 | . 80 180 . 40 340 20 . 520 Destroy 0b10 Robot/NC 65 | 30 5 10 5 . 10 5 . . Destroy Leader 174 | . 22 30 . 10 70 12 . 30 Allied During Kill 36 | . . . . 10 26 . . . Trap Triggered on 0b10 10 | . . . . . . . . 10 Successful Hack 14 | . . . . . . 14 . . Disable Machine 60 | . . . . . 45 15 . . Anti-Garrison Action 250 | . . . . . . . . 250 Destroy Structure 66 | . . . . . 30 6 1 29 Lose Combat Pursuer 90 | . . 45 . . 30 . . 15 Influence Decreases 1341 | 30 67 174 136 60 352 271 1 250 Entered New Map 265 | . . 25 131 . . 109 . . Time Decay 706 | 30 67 129 5 60 252 162 1 . Lost Part 330 | . . 20 . . 60 . . 250 Lost Ally 40 | . . . . . 40 . . . Squads Dispatched 4 | . 1 . . . 2 . 1 . Investigation 1 | . 1 . . . . . . . Extermination . | . . . . . . . . . Reinforcement 3 | . . . . . 2 . 1 . Assault . | . . . . . . . . . Garrison . | . . . . . . . . . Intercept . | . . . . . . . . . Searches Triggered . | . . . . . . . . . Construction Impeded . | . . . . . . . . . Haulers Reinforced . | . . . . . . . . . Active Scanning Responses . | . . . . . . . . . Cargo Convoy Interrupts . | . . . . . . . . . Stealth | -11 -10 -10 -10 -9 -8 -7 -6 -6 --------- Run | Yrd Mat Min Exi Min Mat Fac Fac Gar Distress Signals 1 | . . . . . 1 . . . Communications Jammed . | . . . . . . . . . Distress Signals . | . . . . . . . . . Times Spotted 76 | . 5 14 . 1 23 1 2 30 Peak Tracking Total 8 | . 2 5 . . 6 1 1 8 Tactical Retreats 5 | . . 2 . . 2 . . 1 Traps | -11 -10 -10 -10 -9 -8 -7 -6 -6 ------- Run | Yrd Mat Min Exi Min Mat Fac Fac Gar Traps Triggered 4 | . . . . . 1 . . 3 Indirectly . | . . . . . . . . . Trap Hack Attempts . | . . . . . . . . . Triggered . | . . . . . . . . . Disarmed . | . . . . . . . . . Reprogrammed . | . . . . . . . . . Reused 1 | . . . . . . . . 1 Traps Reconfigurated 6 | . . . . . . . . 6 Traps Extracted . | . . . . . . . . . Installed . | . . . . . . . . . Triggered 1 | . . . . . . . . 1 Machines | -11 -10 -10 -10 -9 -8 -7 -6 -6 ---------- Run | Yrd Mat Min Exi Min Mat Fac Fac Gar Machines Disabled 5 | . . . . . 3 1 . 1 Max in Single Turn 2 | . . . . . 2 1 . 1 Garrison Relay 1 | . . . . . . . . 1 Machines Repaired . | . . . . . . . . . Machines Dismantled . | . . . . . . . . . Machines Sabotaged . | . . . . . . . . . Overloaded Fab Kills . | . . . . . . . . . Hacking | -11 -10 -10 -10 -9 -8 -7 -6 -6 --------- Run | Yrd Mat Min Exi Min Mat Fac Fac Gar Machines Accessed 13 | . 1 . 2 . 2 5 1 2 Terminals 7 | . 1 . . . 2 2 . 2 Fabricators 1 | . . . . . . 1 . . Repair Stations . | . . . . . . . . . Recycling Units 2 | . . . . . . 2 . . Scanalyzers . | . . . . . . . . . Garrison Access 1 | . . . . . . . 1 . Total Hacks 24 | . 4 . 2 . 4 6 2 6 Successful 9 | . 1 . 2 . 1 3 1 1 Failed 15 | . 3 . . . 3 3 1 5 Catastrophic 2 | . 1 . . . . 1 . . Database Lockouts . | . . . . . . . . . Manual 8 | . 1 . 1 . 4 . . 2 Terminals 17 | . 4 . . . 4 3 . 6 Fabricators 1 | . . . . . . 1 . . Repair Stations . | . . . . . . . . . Recycling Units 2 | . . . . . . 2 . . Scanalyzers . | . . . . . . . . . Garrison Access 2 | . . . . . . . 2 . Terminal Hacks 3 | . . . 2 . . 1 . . Record 1 | . . . 1 . . . . . Branch Access Points 1 | . . . . . . 1 . . Proto ID Catalog 1 | . . . 1 . . . . . Fabricator Hacks 1 | . . . . . . 1 . . Network Status 1 | . . . . . . 1 . . Repair Station Hacks . | . . . . . . . . . Recycling Unit Hacks 1 | . . . . . . 1 . . Report Inventory 1 | . . . . . . 1 . . Scanalyzer . | . . . . . . . . . Garrison Access Hacks 1 | . . . . . . . 1 . Unlock Access 1 | . . . . . . . 1 . Unauthorized Hacks 3 | . 1 . . . 1 . . 1 Terminals 3 | . 1 . . . 1 . . 1 Botnet 2 | . 1 . . . 1 . . . Override 1 | . . . . . . . . 1 Fabricators . | . . . . . . . . . Repair Stations . | . . . . . . . . . Recycling Units . | . . . . . . . . . Scanalyzers . | . . . . . . . . . Garrison Access . | . . . . . . . . . Data Cores Recovered . | . . . . . . . . . Used . | . . . . . . . . . Hacking Detections 8 | . 1 . . . 2 3 1 1 Full Trace Events 2 | . 1 . . . . . . 1 Feedback Events . | . . . . . . . . . Feedback Blocked . | . . . . . . . . . Robot Schematics Acquired . | . . . . . . . . . Robots Built . | . . . . . . . . . Authchips . | . . . . . . . . . Time . | . . . . . . . . . Total Robot Build Rating . | . . . . . . . . . Part Schematics Acquired . | . . . . . . . . . Parts Built . | . . . . . . . . . Authchips . | . . . . . . . . . Time . | . . . . . . . . . Total Part Build Rating . | . . . . . . . . . Parts Repaired . | . . . . . . . . . Time . | . . . . . . . . . Parts Recycled . | . . . . . . . . . Recycled Matter . | . . . . . . . . . Retrieved Matter . | . . . . . . . . . Retrieved Components . | . . . . . . . . . Parts Scanalyzed . | . . . . . . . . . Part Schematics Acquired . | . . . . . . . . . Parts Damaged . | . . . . . . . . . Bothacking | -11 -10 -10 -10 -9 -8 -7 -6 -6 ------------ Run | Yrd Mat Min Exi Min Mat Fac Fac Gar Used RIF Installer . | . . . . . . . . . Robots Hacked . | . . . . . . . . . Non-combat . | . . . . . . . . . Combat . | . . . . . . . . . Robot Hacks Applied . | . . . . . . . . . Relay Couplers Released 3 | . . . . . . . . 3 Machine Destruction 3 | . . . . . . . . 3 Fabnet Peak Effective % . | . . . . . . . . . Robots Rewired 2 | . . . 2 . . . . . Allies Hacked . | . . . . . . . . . Hacks Repelled . | . . . . . . . . . Allies | -11 -10 -10 -10 -9 -8 -7 -6 -6 -------- Run | Yrd Mat Min Exi Min Mat Fac Fac Gar Total Allies 3 | . . . 2 1 . . . . Largest Group 3 | . . . 2 3 2 . . . Highest-Rated Group 73 | . . . 42 73 42 . . . Highest-Rated Ally 31 | . . . 21 31 21 . . . Total Orders . | . . . . . . . . . Ally Attacks 29 | . . . . 5 24 . . . Total Damage 520 | . . . . 70 450 . . . Kills 6 | . . . . 2 4 . . . Allies Corrupted . | . . . . . . . . . Allies Melted . | . . . . . . . . . Intel | -11 -10 -10 -10 -9 -8 -7 -6 -6 ------- Run | Yrd Mat Min Exi Min Mat Fac Fac Gar Active Infowar (turns) 1785 | 27 308 383 . . 260 454 190 163 Sensors 807 | . . . . . . 454 190 163 Terrain 260 | . . . . . 260 . . . Seismic 718 | 27 308 383 . . . . . . Robot Analysis Total . | . . . . . . . . . Derelict Logs Recovered 2 | . . 2 . . . . . . Drone Launches . | . . . . . . . . . Drone Recoveries . | . . . . . . . . . Exploration | -11 -10 -10 -10 -9 -8 -7 -6 -6 ------------- Run | Yrd Mat Min Exi Min Mat Fac Fac Gar Turns Passed 4726 | 318 308 546 431 520 577 465 190 1371 Spaces Moved 2533 | 155 175 307 325 439 358 282 79 413 Core 260 | 9 . . . . . . . 251 Treads 710 | 146 175 212 . . 27 . . 150 Legs . | . . . . . . . . . Wheels 1563 | . . 95 325 439 331 282 79 12 Hover . | . . . . . . . . . Flight . | . . . . . . . . . Fastest Speed 50 | 50 160 95 110 110 95 125 185 50 Average Speed 153 | 153 160 144 110 110 121 133 185 276 Slowest Speed 1000 | 160 160 160 110 110 400 170 185 1000 Overloaded Moves . | . . . . . . . . . Propulsion Burnouts . | . . . . . . . . . Robots Hopped . | . . . . . . . . . Potential Cave-ins . | . . . . . . . . . Cave-ins Triggered . | . . . . . . . . . Exploration Rate (%) 36 | 9 26 62 66 73 32 7 3 51 Regions Visited 8 Branch Regions 3 Pre-discovered Areas 4 | . . 3 1 . . . . . Known Exits Taken 2 | . . . . . . 1 1 . Unknown Exits Taken 6 | 1 1 1 1 1 1 . . . Scrap Searched 2 | . . 1 . 1 . . . . Spaces Dug 7 | . . . . . . 6 1 . Terrain Destroyed 98 | . . . . . 48 6 1 43 Melee 7 | . . . . . . 6 1 . Projectile . | . . . . . . . . . AOE 91 | . . . . . 48 . . 43 Terrain Rammed . | . . . . . . . . . Walls Destroyed . | . . . . . . . . . Machines Disabled . | . . . . . . . . . Actions | -11 -10 -10 -10 -9 -8 -7 -6 -6 --------- Run | Yrd Mat Min Exi Min Mat Fac Fac Gar Total 3063 | 195 189 353 391 476 443 346 112 558 Wait 127 | . 4 1 5 30 3 19 25 40 Move 2524 | 154 174 306 324 438 357 281 79 411 Hop . | . . . . . . . . . Pick Up 69 | 12 3 1 4 8 22 10 1 8 Fast Attach 10 | . . 2 . . 3 3 . 2 Attach 37 | 7 . 2 . . 12 1 2 13 Detach 3 | . . 1 . . . . . 2 Swap 22 | . . 2 . . 5 8 . 7 Drop 40 | . . 5 . . 13 11 . 11 Fire 138 | 22 8 33 4 . 28 6 4 33 Melee 19 | . . . . . . 7 1 11 Ram 1 | . . . . . . . . 1 Kick . | . . . . . . . . . Crush . | . . . . . . . . . Escape Stasis 19 | . . . . . . . . 19 Rewire 54 | . . . 54 . . . . . Trap . | . . . . . . . . . Miscellaneous . | . . . . . . . . . Route ------- -11/Scrapyard -10/Materials -10/Mines (discovered 3 exits: [*Mat x2] / *Exi) -10/Exiles -9/Mines -8/Materials -7/Factory (discovered 3 exits: *Fac / Low x2) -6/Factory -6/Garrison (discovered 3 exits: *Fac x3) History --------- Turn | Location | Event 12 | -11/Scrapyard | Discovered new exit (range 16) 319 | -11/Scrapyard | Entered Materials 320 | -10/Materials | Build established: Mutant 459 | -10/Materials | Discovered new exit (range 6) 627 | -10/Materials | Entered Mines 628 | -10/Mines | Learned location of Storage (-9) 674 | -10/Mines | Learned location of Zion (-7) 1090 | -10/Mines | Discovered new exit (range 10) 1123 | -10/Mines | Discovered new exit (range 7) 1164 | -10/Mines | Deemed a non-threat by the Exiles lab entrance 1164 | -10/Mines | Discovered new exit (range 5) 1173 | -10/Mines | Entered Exiles 1173 | -10/Exiles | Found Exiles lab destroyed 1281 | -10/Exiles | Opened EX-Vault 1287 | -10/Exiles | Found Trap Reconfigurator 1587 | -10/Exiles | Discovered new exit (range 14) 1604 | -10/Exiles | Entered Mines 1604 | -9/Mines | Accompanied by 2 allies 1717 | -9/Mines | Received a Mining Laser from a helpful Derelict 1816 | -9/Mines | Found a Scrap Suit stashed away for nefarious purposes 1818 | -9/Mines | Found Scrap Suit 1942 | -9/Mines | Received a Rocket Launcher from a helpful Derelict 1976 | -9/Mines | Found a damaged Exp. Sensor Array with a note attached 1978 | -9/Mines | Found Prototype Device 1991 | -9/Mines | A weapon hastily lodged in a ceiling crevice suddenly fell to the ground 2040 | -9/Mines | Assembled infested the area 2118 | -9/Mines | Discovered new exit (range 5) 2124 | -9/Mines | Entered Materials 2124 | -8/Materials | Accompanied by 2 allies 2124 | -8/Materials | Evolved 4 slots: Propulsion x1, Utility x2, Weapon x1 2224 | -8/Materials | Found Powered Armor 2226 | -8/Materials | Found Powered Armor 2244 | -8/Materials | Found Powered Armor 2314 | -8/Materials | Discovered new exit (range 10) 2471 | -8/Materials | Lost 3 parts (2n1u) 2701 | -8/Materials | Entered Factory 2701 | -7/Factory | Evolved 2 slots: Propulsion x1, Utility x1 2712 | -7/Factory | Identified Exp. Sensor Array 2908 | -7/Factory | Found Prototype Launcher 2908 | -7/Factory | Identified Rocket Array 2916 | -7/Factory | Found Rocket Array 2918 | -7/Factory | Found Rocket Array 2922 | -7/Factory | Found Rocket Array 2996 | -7/Factory | Discovered new exit (range 12) 3021 | -7/Factory | Identified exit to Factory 3096 | -7/Factory | Identified exit to Lower Caves 3166 | -7/Factory | Entered another Factory area 3166 | -6/Factory | Evolved 2 slots: Power x1, Utility x1 3356 | -6/Factory | Identified exit to Garrison 3356 | -6/Factory | Entered Garrison 3378 | -6/Garrison | Triggered checkpoint 3464 | -6/Garrison | Triggered checkpoint 3502 | -6/Garrison | Garrison Relay disabled 3544 | -6/Garrison | Identified exit to Factory 3729 | -6/Garrison | Build established: Scavenger-Tank 3733 | -6/Garrison | Triggered checkpoint 3785 | -6/Garrison | Destroyed 8 combat bots 3794 | -6/Garrison | Lost 14 parts (3p4n2u5w) 4023 | -6/Garrison | Triggered checkpoint 4057 | -6/Garrison | Build established: Mutant 4070 | -6/Garrison | Lost 3 parts (2u1w) 4622 | -6/Garrison | Core integrity fell below 50% 4658 | -6/Garrison | Core integrity fell below 20% 4682 | -6/Garrison | Lost 7 parts (2p3u2w) 4726 | -6/Garrison | Triggered checkpoint 4727 | -6/Garrison | Destroyed by G-50 Soldier with Heavy Laser Last Messages --------------- 04625_ Lgt. Nuclear Core destroyed. 04628_ Coolant Injector destroyed. 04646_ Hardlight Generator destroyed. 04646_ Hvy. Mace destroyed. 04646_ Fission Core destroyed. 04646_ Dropped Lrg. Matter Pod. 04649_ The unstable cave ceiling collapses. 04651_ Trap Reconfigurator destroyed. 04655_ Attempting to access garrison exit controls... 04655_ Remote lockdown engaged. Remote lockdown override. 04666_ Slammed into Y-54 Guardian. 04713_ Attempting to access garrison exit controls... 04713_ Remote lockdown engaged. Remote lockdown override. 04726_ Beams of light sweep through the air. An alarm sounds. 04727_ Critical hit (Burn: +37). Map ----- +----------------------------------------------------+ | | | | | | | | | | | | | | | ???????????????????????????????????????????????? | | ???????????????????????????????????????????????? | | ???????????????????????????????????????????????? | | ???????????????????????????????????????????????? | | ???????????????????????????????????????????????? | | ???????????????????????????????????????????????? | | ???????????????????????????????????????????????? | | ???????????????????????????????????????????????? | | ???????????????????????????????????????????????? | | ???????????????????????????????????????????????? | | ?????????#####?????????????????????????????????? | | ?????????# #?????????????????????????????????? | | ?????????# < #?????????????????????????????????? | | ?????????# #?????????????????????????????????? | | ?????????# #???????#####??????###????????????? | | ?????????# #???????#gg #?????"""#????????????? | | ?????????# #??###### g##### ###???????????? | | ?????????# #??# #???????????? | | ?????????# #??# @ #???????????? | | ?????????# #??# #################???????????? | | ?????????# #??# #???????????????????????????? | | ?????????# #### #################???????????? | | ?????????# #???????????? | | ?????????# #???????????? | | ?????????# #???????????? | | ?????????####################### #???????????? | | ???????????????????????????????# #???????????? | | ???????????????????????????????# #???????????? | | ???????????????????????????????# #???????????? | | ???????????????????????????????# #???????????? | | ???????????????????????????????# #???????????? | | ???????????????????????????????# #???????????? | | ???????????????????????????????# #???????????? | | ???????????????????????????????# #???????????? | | ???????????????????????????????# #???????????? | | ???????????????????????????????# #???????????? | | ???????????????????????????????# #???????????? | | ???????????????????????????????# #???????????? | | ???????????????????????????????# #???????????? | | ???????????????????????????????# #???????????? | | ???????????????????????????????# #???????????? | | ???????????????????????????????# #???????????? | | ???????????????????????????????# ############# | +----------------------------------------------------+ Best States ------------- Heat Dissipation 37 Coolant Potential 65 Energy Generation 27 Energy Capacity 510 Matter Stores 300 Matter Capacity 450 Sight Range 16 Robot Scan Range 20 Terrain Scan Range 16 Terrain Scan Density 85 Armor Coverage 625 Evasion (%) 50 Recoil Reduction 4 Offensive Hacking 10 Authchip Count 2 Item Schematics ----------------- None Robot Schematics ------------------ None Fabricated ------------ Nothing Repaired ---------- Nothing Alien Tech Used ----------------- None Achievements -------------- None Challenges ------------ None Game ------ Seed HoverCargoLauncher Manual? 0 Play Time 00:35:49 Cumulative 194.6 hours Start 2025.08.24 @ 08:29:19 End 2025.08.24 @ 09:16:46 Sessions 1 Manual Loads 0 Difficulty Rogue Special Mode None Game No. 303 Rogue 303 Adventurer 0 Explorer 0 Win Type - Total 4 Types 3/0/1/0/0/0/0/0/0/0 Lore% 79 Gallery% 75 Achievement% 55 Wizard Run 0 Options --------- Layout 1 ASCII 0 Keyboard 0 Movement Mouse Keybinds 0 Fullscreen 1 Font 24/Smallcaps Map View 50x40 Zoom Use 0% Tactical HUD 1 Map Filters NONE Filters NONE Steam 1 RUN: e6158a2f-e66f-4bc7-882a-6ccf8450cc48